bitfinex-derivatives/quotes_SOLF0:USTF0_20250614
["timestamp","ask_amount","ask_price","bid_price","bid_amount"]
[1749923120908,0.05011078,143.97,143.95,35.08]
[1749923121207,6.99371078,143.97,143.95,35.08]
[1749923123208,0.05011078,143.97,143.95,35.08]
[1749923123398,0.05011078,143.97,143.95,40.37653185]
[1749923123807,0.05011078,143.97,143.96,6.9437]
[1749923126905,6.9415,144.01,143.97,6.9429]
[1749923127099,2.3297,144.02,143.97,12.23943185]
[1749923127904,0.04951769,144.01,143.98,0.04469058]
[1749923128713,6.9418,144.0,143.98,0.04469058]
[1749923129316,0.04951769,144.01,143.98,6.98729058]
[1749923129317,6.99101769,144.01,143.98,6.98729058]
[1749923129911,6.99101769,144.01,143.99,47.31863185]
[1749923129912,0.04951769,144.01,143.99,47.31863185]
[1749923130117,0.04951769,144.01,143.99,40.37653185]
[1749923130419,0.04951769,144.01,143.98,0.04469058]
[1749923130810,6.9423,143.99,143.98,0.04469058]
[1749923138532,6.942,144.0,143.98,0.04469058]
[1749923138731,0.04951769,144.01,143.98,6.98749058]
[1749923138930,0.04951769,144.01,143.98,0.04469058]
[1749923139326,6.9418,144.0,143.98,0.04469058]
[1749923142836,6.99101769,144.01,143.98,0.04469058]
[1749923143030,0.04951769,144.01,143.98,0.04469058]
[1749923143534,0.04951769,144.01,143.99,6.942]
[1749923143833,0.04951769,144.01,143.98,0.04469058]
[1749923144028,0.04951769,144.01,143.99,35.06]
[1749923145333,0.04951769,144.01,143.99,42.0022]
[1749923145536,0.04951769,144.01,143.99,40.35653185]
[1749923146830,0.04951769,144.01,144.0,6.9418]
[1749923150334,6.9401,144.04,144.0,6.9418]
[1749923150537,6.9401,144.04,144.01,6.9413]
[1749923150735,6.9395,144.05,144.01,5.29653185]
[1749923151240,6.9395,144.05,144.02,6.9406]
[1749923151546,6.9395,144.05,144.03,35.06]
[1749923151547,6.98597826,144.05,144.03,35.06]
[1749923152044,0.04647826,144.05,144.03,47.29673185]
[1749923153446,6.7243,144.12,144.03,40.35653185]
[1749923153648,6.7243,144.12,144.05,5.29653185]
[1749923153843,6.9378,144.09,144.05,12.23583185]
[1749923154139,6.7243,144.12,144.07,5.29653185]
[1749923154342,6.7243,144.12,144.07,40.35653185]
[1749923154540,6.9372,144.1,144.08,0.04912778]
[1749923155735,6.98792475,144.11,144.08,0.04912778]
[1749923156151,6.98792475,144.11,144.09,5.29653185]
[1749923156350,0.05122475,144.11,144.09,5.29653185]
[1749923157634,6.9348,144.15,144.11,6.9363]
[1749923157840,35.06,144.19,144.11,40.35653185]
[1749923158035,2.58707739,144.18,144.13,5.29653185]
[1749923158343,2.58707739,144.18,144.11,35.06]
[1749923158344,2.58707739,144.18,144.12,5.29653185]
[1749923158542,35.06,144.19,144.12,5.29653185]
[1749923158845,0.0485699,144.17,144.14,0.04872829]
[1749923159036,6.9341,144.16,144.14,0.04872829]
[1749923159241,0.0485699,144.17,144.14,0.04872829]
[1749923159642,6.9345,144.16,144.14,0.04872829]
[1749923160543,6.9823699,144.17,144.14,0.04872829]
[1749923160742,0.0485699,144.17,144.14,0.04872829]
[1749923160936,6.9822699,144.17,144.14,0.04872829]
[1749923161851,0.0485699,144.17,144.15,40.45653185]
[1749923162345,0.0485699,144.17,144.16,6.9341]
[1749923163641,9.2914,144.22,144.18,6.9329]
[1749923163951,6.9314,144.22,144.19,35.16]
[1749923164143,6.9309,144.23,144.19,35.16]
[1749923164642,0.05163907,144.22,144.2,5.34968641]
[1749923165852,35.14,144.28,144.2,5.34968641]
[1749923166041,6.9311,144.23,144.19,35.16]
[1749923166242,6.9311,144.23,144.19,40.45653185]
[1749923166851,0.04712006,144.22,144.2,0.04675421]
[1749923167054,0.04925707,144.22,144.21,5.29653185]
[1749923167749,6.5502,144.3,144.22,6.9311]
[1749923167750,6.9295,144.26,144.22,6.9311]
[1749923167954,6.9295,144.26,144.23,40.43653185]
[1749923168350,6.5502,144.3,144.23,40.43653185]
[1749923168748,0.05066892,144.28,144.25,0.05308003]
[1749923168950,6.9292,144.27,144.25,0.05308003]
[1749923169746,6.9293,144.26,144.25,0.05308003]
[1749923175756,6.9293,144.26,144.25,8.003e-05]
[1749923186869,6.929,144.27,144.25,8.003e-05]
[1749923190465,6.9293,144.26,144.25,8.003e-05]
[1749923192063,6.9291,144.27,144.25,8.003e-05]
[1749923193369,6.9293,144.26,144.25,8.003e-05]
[1749923194669,0.05066892,144.28,144.25,8.003e-05]
[1749923195269,6.97936892,144.28,144.25,8.003e-05]
[1749923196069,6.9288,144.27,144.25,8.003e-05]
[1749923199669,6.9293,144.26,144.25,8.003e-05]
[1749923199868,12.22583185,144.26,144.25,8.003e-05]
[1749923200572,17.75801118,144.26,144.25,8.003e-05]
[1749923203968,6.9327,144.19,144.18,35.08]
[1749923212881,6.98417931,144.2,144.18,35.08]
[1749923213073,0.05177931,144.2,144.18,35.08]
[1749923214679,6.9327,144.19,144.18,35.08]
[1749923215780,6.98417931,144.2,144.18,35.08]
[1749923216282,6.9327,144.19,144.18,35.08]
[1749923216476,0.05177931,144.2,144.18,35.08]
[1749923217174,6.98427931,144.2,144.18,35.08]
[1749923217380,0.05177931,144.2,144.18,35.08]
[1749923217781,0.05177931,144.2,144.19,6.9327]
[1749923218276,37.2896,144.27,144.21,6.9317]
[1749923218469,37.2896,144.27,144.19,5.29653185]
[1749923218874,6.931,144.23,144.19,5.29653185]
[1749923219274,0.04867561,144.22,144.2,0.04631277]
[1749923219476,6.98007561,144.22,144.2,0.04631277]
[1749923220276,0.04867561,144.22,144.2,0.04631277]
[1749923221583,6.97997561,144.22,144.2,0.04631277]
[1749923222184,0.04867561,144.22,144.2,0.04631277]
[1749923223083,0.04867561,144.22,144.2,6.97831277]
[1749923223284,0.04867561,144.22,144.2,0.04631277]
[1749923223484,2.3781,144.28,144.21,5.29653185]
[1749923223782,2.3781,144.28,144.22,41.931]
[1749923224384,5.29653185,144.31,144.23,12.22703185]
[1749923224582,0.04633704,144.28,144.26,0.04496297]
[1749923225279,6.9289,144.27,144.26,0.04496297]
[1749923227087,0.04633704,144.28,144.26,0.04496297]
[1749923227592,6.97473704,144.28,144.26,0.04496297]
[1749923227889,0.04633704,144.28,144.26,0.04496297]
[1749923228301,0.04633704,144.28,144.27,5.29653185]
[1749923228791,0.04633704,144.28,144.27,12.22533185]
[1749923229694,0.04633704,144.28,144.27,5.29653185]
[1749923232786,0.04633704,144.28,144.26,41.97406297]
[1749923232983,0.04633704,144.28,144.26,47.27059482]
[1749923237307,0.04633704,144.28,144.26,40.34149482]
[1749923238896,0.04633704,144.28,144.26,35.04496297]
[1749923239695,6.9288,144.27,144.26,35.04496297]
[1749923240705,6.97493704,144.28,144.26,35.04496297]
[1749923241410,0.04633704,144.28,144.26,35.04496297]
[1749923241610,0.04633704,144.28,144.26,40.34149482]
[1749923242410,0.04633704,144.28,144.26,47.27059482]
[1749923242802,34.98,144.37,144.26,40.34149482]
[1749923243003,5.53399313,144.36,144.31,5.29653185]
[1749923243205,5.5329622,144.37,144.3,40.27653185]
[1749923243413,2.2743,144.38,144.3,40.27653185]
[1749923243414,6.9265,144.32,144.3,40.27653185]
[1749923243916,6.97535403,144.32,144.3,40.32524502]
[1749923244315,6.97535403,144.32,144.3,35.02871317]
[1749923244720,0.04885403,144.32,144.3,35.02871317]
[1749923245317,2.2743,144.38,144.31,5.29653185]
[1749923246317,2.2743,144.38,144.33,0.05301096]
[1749923246915,6.9257,144.34,144.33,0.05301096]
[1749923249924,6.9254,144.35,144.33,0.05301096]
[1749923250125,2.2743,144.38,144.33,0.05301096]
[1749923250516,6.9255,144.35,144.33,0.05301096]
[1749923250722,2.2743,144.38,144.33,0.05301096]
[1749923251022,6.9248,144.36,144.33,0.05301096]
[1749923251224,2.2743,144.38,144.33,0.05301096]
[1749923251728,6.9255,144.34,144.33,0.05301096]
[1749923260730,2.2743,144.38,144.33,0.05301096]
[1749923261232,6.9255,144.34,144.33,0.05301096]
[1749923261927,2.2743,144.38,144.33,0.05301096]
[1749923262125,2.2743,144.38,144.34,5.29653185]
[1749923262626,6.9248,144.36,144.34,5.29653185]
[1749923263828,6.9248,144.36,144.33,6.97891096]
[1749923263829,2.2743,144.38,144.33,0.05301096]
[1749923264334,6.9255,144.34,144.33,0.05301096]
[1749923265335,6.9251,144.35,144.33,0.05301096]
[1749923265534,2.2743,144.38,144.33,0.05301096]
[1749923266125,6.9254,144.35,144.33,0.05301096]
[1749923267431,35.16,144.42,144.34,40.429911]
[1749923267633,35.16,144.42,144.37,0.04998158]
[1749923269531,6.9235,144.39,144.37,0.04998158]
[1749923270343,6.9235,144.38,144.37,0.04998158]
[1749923270637,35.16,144.42,144.37,0.04998158]
[1749923271127,6.9234,144.39,144.37,0.04998158]
[1749923271531,35.16,144.42,144.37,0.04998158]
[1749923271833,6.9234,144.39,144.37,0.04998158]
[1749923273734,6.9229,144.4,144.38,5.26639318]
[1749923274541,6.9231,144.39,144.38,5.26639318]
[1749923275743,6.9228,144.4,144.38,5.26639318]
[1749923279345,6.9231,144.39,144.38,5.26639318]
[1749923282940,6.9228,144.4,144.38,5.26639318]
[1749923283353,6.9224,144.41,144.38,5.26639318]
[1749923283946,6.8469,144.44,144.38,5.26639318]
[1749923284148,6.8469,144.44,144.4,0.05216531]
[1749923284556,6.9221,144.41,144.4,0.05216531]
[1749923285446,6.9212,144.43,144.4,5.31855849]
[1749923285649,34.96,144.48,144.42,5.26639318]
[1749923285848,34.96,144.48,144.44,0.05175599]
[1749923286047,6.9202,144.46,144.44,5.31814917]
[1749923286358,6.9581,144.49,144.44,5.31814917]
[1749923286653,6.9196,144.47,144.44,5.31814917]
[1749923287053,6.9199,144.46,144.44,5.31814917]
[1749923288153,6.9195,144.47,144.44,5.31814917]
[1749923289851,6.9195,144.47,144.44,12.23854917]
[1749923290048,6.9195,144.47,144.44,5.31814917]
[1749923290248,6.9197,144.46,144.44,5.31814917]
[1749923290446,2.254,144.49,144.44,5.31814917]
[1749923290751,6.9195,144.47,144.44,5.31814917]
[1749923291446,6.9195,144.47,144.44,12.23864917]
[1749923291643,6.9195,144.47,144.44,5.31814917]
[1749923292044,6.9189,144.48,144.44,12.23884917]
[1749923292252,34.96,144.51,144.44,0.05175599]
[1749923292559,6.9202,144.45,144.44,0.05175599]
[1749923311166,6.9229,144.4,144.38,34.94]
[1749923311362,6.9229,144.4,144.38,40.20639318]
[1749923311568,40.20639318,144.46,144.38,40.20639318]
[1749923312165,0.04559663,144.43,144.41,0.04694423]
[1749923312366,6.9221,144.42,144.41,0.04694423]
[1749923331790,6.96699663,144.43,144.41,0.04694423]
[1749923331978,0.04559663,144.43,144.41,0.04694423]
[1749923333788,6.9216,144.42,144.41,0.04694423]
[1749923338301,5.58432569,144.42,144.38,34.94]
[1749923338600,0.04559663,144.43,144.38,34.94]
[1749923338786,6.9231,144.39,144.38,34.94]
[1749923340299,6.9235,144.38,144.37,0.05330295]
[1749923342301,6.9255,144.34,144.32,42.51898525]
[1749923342690,5.26830525,144.4,144.32,42.51898525]
[1749923342905,17.78888067,144.39,144.32,37.25068]
[1749923343096,6.9259,144.33,144.32,37.25068]
[1749923345699,6.9784998,144.34,144.32,37.25068]
[1749923347704,6.9259,144.33,144.32,37.25068]
[1749923351303,6.9784998,144.34,144.32,37.25068]
[1749923351897,0.0527998,144.34,144.32,37.25068]
[1749923352798,6.9259,144.33,144.32,37.25068]
[1749923353101,6.9259,144.33,144.32,2.27068]
[1749923362108,40.30110505,144.34,144.26,34.98]
[1749923362306,2.2961,144.32,144.26,34.98]
[1749923362613,7.56440525,144.32,144.26,34.98]
[1749923363007,0.05239705,144.3,144.28,0.0531929]
[1749923363602,40.3007023,144.3,144.23,34.98]
[1749923364604,40.3007023,144.3,144.25,0.04491378]
[1749923365010,6.9293,144.26,144.25,0.04491378]
[1749923373017,6.9293,144.26,144.25,1.378e-05]
[1749923374119,42.0093,144.26,144.25,1.378e-05]
[1749923375019,47.27760525,144.26,144.25,1.378e-05]
[1749923376321,42.0093,144.26,144.25,1.378e-05]
[1749923379914,46.7273,144.26,144.25,1.378e-05]
[1749923389231,6.9331,144.18,144.17,37.2545]
[1749923390645,6.9336,144.17,144.16,0.05033198]
[1749923393744,6.9336,144.17,144.16,3.198e-05]
[1749923401655,0.04842168,144.19,144.16,3.198e-05]
[1749923401956,0.04842168,144.19,144.16,5.26833723]
[1749923402348,6.9332,144.18,144.16,5.26833723]
[1749923402548,6.9332,144.18,144.16,12.20243723]
[1749923402855,0.04842168,144.19,144.16,5.26833723]
[1749923403048,5.26830525,144.27,144.18,5.26830525]
[1749923403250,434.34,144.26,144.18,5.26830525]
[1749923403856,434.34,144.26,144.18,12.20140525]
[1749923404042,6.932,144.21,144.18,12.20140525]
[1749923404244,0.04395503,144.23,144.21,0.05292858]
[1749923404852,6.9315,144.22,144.21,0.05292858]
[1749923407854,6.97495503,144.23,144.21,0.05292858]
[1749923408162,6.9312,144.22,144.21,0.05292858]
[1749923411551,6.97475503,144.23,144.21,0.05292858]
[1749923411748,0.04395503,144.23,144.21,5.32123383]
[1749923411959,0.04395503,144.23,144.22,2.357]
[1749923412759,0.04395503,144.23,144.21,0.05292858]
[1749923412958,6.9312,144.22,144.21,0.05292858]
[1749923413359,0.04395503,144.23,144.21,0.05292858]
[1749923414464,0.04395503,144.23,144.22,5.26830525]
[1749923414670,40.26830525,144.29,144.22,7.46880525]
[1749923415363,6.9301,144.25,144.22,14.39990525]
[1749923415549,6.97811673,144.25,144.22,14.44665256]
[1749923418557,6.9303,144.24,144.22,7.51555256]
[1749923418862,0.04801673,144.25,144.22,7.51555256]
[1749923419062,0.04801673,144.25,144.22,2.24724731]
[1749923419960,0.04801673,144.25,144.23,35.0]
[1749923420264,5.26830525,144.31,144.23,40.26830525]
[1749923420464,5.26830525,144.31,144.24,2.206]
[1749923420758,5.26830525,144.31,144.24,9.136]
[1749923420966,35.0,144.32,144.24,9.136]
[1749923421160,0.05199915,144.29,144.27,0.04847756]
[1749923421355,6.9283,144.28,144.27,0.04847756]
[1749923422464,6.9283,144.28,144.27,7.756e-05]
[1749923431562,6.97999915,144.29,144.27,7.756e-05]
[1749923432471,6.9283,144.28,144.27,7.756e-05]
[1749923433862,6.97999915,144.29,144.27,7.756e-05]
[1749923434679,6.9283,144.28,144.27,7.756e-05]
[1749923434972,0.05199915,144.29,144.27,34.98007756]
[1749923435369,0.05199915,144.29,144.27,47.17698281]
[1749923435764,6.97999915,144.29,144.27,47.17698281]
[1749923435971,6.97999915,144.29,144.27,40.24838281]
[1749923438278,6.97999915,144.29,144.27,34.98007756]
[1749923440483,6.9283,144.28,144.27,34.98007756]
[1749923445082,6.9283,144.28,144.27,7.756e-05]
[1749923446681,0.05199915,144.29,144.27,7.756e-05]
[1749923447784,6.9283,144.28,144.27,7.756e-05]
[1749923448787,6.98009915,144.29,144.27,7.756e-05]
[1749923449183,0.05199915,144.29,144.27,7.756e-05]
[1749923449788,6.9283,144.28,144.27,7.756e-05]
[1749923450984,0.05199915,144.29,144.27,7.756e-05]
[1749923450985,6.97999915,144.29,144.27,7.756e-05]
[1749923454184,0.05199915,144.29,144.27,6.92887756]
[1749923454386,0.05199915,144.29,144.27,12.19718281]
[1749923455084,0.05199915,144.29,144.28,34.98]
[1749923455880,0.05199915,144.29,144.28,41.9083]
[1749923456591,0.05199915,144.29,144.28,34.98]
[1749923460093,0.05199915,144.29,144.28,41.9083]
[1749923460292,2.3199,144.35,144.28,34.98]
[1749923460592,7.85960143,144.35,144.28,34.98]
[1749923460794,6.9272,144.31,144.28,41.9081]
[1749923461089,7.58820525,144.35,144.28,34.98]
[1749923461296,7.58820525,144.35,144.3,0.05021537]
[1749923461297,5.32151888,144.33,144.3,0.05021537]
[1749923461489,5.5404763,144.32,144.3,0.05021537]
[1749923462591,7.61261888,144.33,144.3,0.05021537]
[1749923462890,6.9269,144.31,144.3,0.05021537]
[1749923478699,6.9266,144.32,144.3,0.05021537]
[1749923479703,6.9266,144.32,144.3,6.97751537]
[1749923480204,0.05321363,144.33,144.3,6.97751537]
[1749923480205,6.97931363,144.33,144.3,6.97751537]
[1749923481208,6.9265,144.32,144.3,0.05021537]
[1749923482006,6.97941363,144.33,144.3,6.97751537]
[1749923482707,6.9265,144.32,144.3,0.05021537]
[1749923484217,6.9265,144.32,144.3,6.97751537]
[1749923484514,6.9265,144.32,144.3,0.05021537]
[1749923485310,6.97931363,144.33,144.3,0.05021537]
[1749923485509,0.05321363,144.33,144.31,5.26830525]
[1749923485715,0.05321363,144.33,144.32,34.96]
[1749923489516,6.97911363,144.33,144.32,34.96]
[1749923490921,6.97911363,144.33,144.31,5.26830525]
[1749923491117,40.23471986,144.32,144.12,398.94]
[1749923491314,5.27471986,144.27,144.18,5.27471986]
[1749923491514,5.27471986,144.24,144.19,34.96]
[1749923491718,2.3207,144.26,144.19,40.23471986]
[1749923492017,5.27471986,144.28,144.19,40.23471986]
[1749923492217,0.04855109,144.25,144.22,0.04752933]
[1749923492417,0.04855109,144.25,144.23,34.96]
[1749923492621,6.97875109,144.25,144.23,34.96]
[1749923493218,6.9303,144.24,144.23,34.96]
[1749923494425,0.04855109,144.25,144.23,34.96]
[1749923495024,6.97845109,144.25,144.23,34.96]
[1749923496724,6.9303,144.24,144.23,34.96]
[1749923498223,0.04855109,144.25,144.23,40.23714781]
[1749923498521,5.27714781,144.33,144.23,40.23714781]
[1749923498725,6.9273,144.31,144.26,5.27714781]
[1749923498923,6.9273,144.31,144.27,34.96]
[1749923499331,0.04488105,144.3,144.28,0.04536851]
[1749923499522,0.04488105,144.3,144.28,5.32251632]
[1749923499828,5.27714781,144.36,144.28,5.32251632]
[1749923500128,6.9256,144.34,144.29,6.9279]
[1749923500428,44.71454781,144.38,144.29,6.9279]
[1749923500826,0.04799581,144.35,144.32,0.0463788]
[1749923501031,0.04799581,144.35,144.33,40.23714781]
[1749923501526,0.04799581,144.35,144.33,47.16264781]
[1749923501717,0.04799581,144.35,144.33,40.23714781]
[1749923502622,0.04799581,144.35,144.34,6.9255]
[1749923505527,6.9227,144.4,144.35,6.9246]
[1749923505725,6.9227,144.4,144.36,5.27714781]
[1749923505919,6.9227,144.4,144.37,34.94]
[1749923506430,6.97174753,144.4,144.37,34.99071407]
[1749923508133,398.9,144.56,144.39,5.26446324]
[1749923508328,2.1822,144.48,144.37,34.94]
[1749923508727,6.9209,144.44,144.39,6.9231]
[1749923508931,6.9209,144.44,144.4,5.2629231]
[1749923509127,0.04825542,144.43,144.41,34.9842194]
[1749923514432,0.04825542,144.43,144.41,41.9062194]
[1749923516340,0.04825542,144.43,144.41,34.9842194]
[1749923518239,0.04825542,144.43,144.41,41.9063194]
[1749923523248,4.3956,144.48,144.42,5.2629231]
[1749923523544,6.9198,144.46,144.42,5.2629231]
[1749923524347,0.02894046,144.45,144.43,0.05151961]
[1749923527342,0.02894046,144.45,144.43,5.31444271]
[1749923529452,0.02894046,144.45,144.43,12.23554271]
[1749923530153,0.02894046,144.45,144.43,5.31444271]
[1749923530553,37.2578,144.5,144.43,5.31444271]
[1749923530554,2.3178,144.5,144.43,5.31444271]
[1749923530750,2.3178,144.5,144.45,5.2629231]
[1749923531050,40.1829231,144.53,144.46,34.92]
[1749923531256,37.1287,144.53,144.46,34.92]
[1749923531448,37.1287,144.53,144.47,5.2629231]
[1749923531644,37.1287,144.53,144.46,34.92]
[1749923531645,6.9181,144.5,144.49,0.04549075]
[1749923533149,6.9181,144.5,144.49,9.075e-05]
[1749923541260,6.9181,144.5,144.4,9.1353]
[1749923541261,19.38212484,144.5,144.4,34.9]
[1749923541461,5.2629231,144.46,144.4,34.9]
[1749923541653,6.9221,144.41,144.4,34.9]
[1749923542357,6.96624826,144.42,144.4,34.9]
[1749923542555,0.04454826,144.42,144.4,34.9]
[1749923542973,6.9221,144.41,144.4,34.9]
[1749923551457,6.9226,144.4,144.39,0.04414746]
[1749923559773,6.925,144.35,144.34,34.9]
[1749923561773,6.96936172,144.36,144.34,34.9]
[1749923562768,6.96936172,144.36,144.34,41.8254]
[1749923563074,6.96936172,144.36,144.34,40.1629231]
[1749923567082,6.925,144.35,144.34,40.1629231]
[1749923567768,6.925,144.35,144.34,34.9]
[1749923568173,6.9255,144.34,144.33,0.05269629]
[1749923586695,0.04466172,144.36,144.33,0.05269629]
[1749923587193,6.925,144.35,144.33,0.05269629]
[1749923587784,6.925,144.35,144.33,12.24151939]
[1749923588892,6.9255,144.34,144.33,0.05269629]
[1749923589300,6.9277,144.3,144.28,40.1629231]
[1749923590292,6.97729685,144.3,144.28,40.21277179]
[1749923590491,0.04959685,144.3,144.28,47.14107179]
[1749923591598,0.04959685,144.3,144.29,6.9279]
[1749923594993,0.04959685,144.3,144.28,40.21277179]
[1749923594994,34.9,144.37,144.28,40.21277179]
[1749923595198,34.9,144.37,144.32,5.2629231]
[1749923595399,6.925,144.35,144.32,40.1629231]
[1749923595594,6.925,144.35,144.32,47.0888231]
[1749923595807,6.925,144.35,144.32,40.1629231]
[1749923595993,6.9712867,144.35,144.32,40.21118634]
[1749923596397,0.0462867,144.35,144.33,6.9259]
[1749923596596,0.0462867,144.35,144.32,40.21118634]
[1749923596800,0.0462867,144.35,144.33,6.9259]
[1749923597793,0.0462867,144.35,144.34,6.9255]
[1749923598194,0.0462867,144.35,144.32,40.21118634]
[1749923598402,0.0462867,144.35,144.33,6.9257]
[1749923598693,0.0462867,144.35,144.32,40.21118634]
[1749923599606,0.0462867,144.35,144.33,6.9259]
[1749923600695,0.0462867,144.35,144.32,34.94826324]
[1749923601403,6.9257,144.34,144.32,34.94826324]
[1749923601699,6.9714867,144.35,144.32,41.87456324]
[1749923601897,6.9714867,144.35,144.32,40.21118634]
[1749923602097,0.0462867,144.35,144.32,40.21118634]
[1749923602492,6.9712867,144.35,144.32,47.13738634]
[1749923602695,0.0462867,144.35,144.32,47.13738634]
[1749923603205,6.9255,144.34,144.32,40.21118634]
[1749923603604,6.9255,144.34,144.32,34.94826324]
[1749923603806,6.9259,144.33,144.32,34.94826324]
[1749923605502,6.9256,144.34,144.32,34.94826324]
[1749923605702,0.0462867,144.35,144.32,0.04826324]
[1749923606498,6.9257,144.34,144.32,0.04826324]
[1749923607727,6.9257,144.34,144.32,6.97466324]
[1749923608822,6.9257,144.34,144.32,0.04826324]
[1749923610416,6.9259,144.33,144.32,0.04826324]
[1749923614824,6.9257,144.34,144.32,0.04826324]
[1749923615130,0.0462867,144.35,144.32,0.04826324]
[1749923615728,6.9255,144.34,144.32,0.04826324]
[1749923619229,6.9259,144.33,144.32,0.04826324]
[1749923620834,6.9257,144.34,144.32,0.04826324]
[1749923622034,6.9259,144.33,144.32,0.04826324]
[1749923622340,0.0462867,144.35,144.32,0.04826324]
[1749923623331,6.9259,144.34,144.32,0.04826324]
[1749923626636,6.9259,144.33,144.32,0.04826324]
[1749923635843,6.9259,144.33,144.32,6.324e-05]
[1749923636254,12.49082961,144.33,144.32,6.324e-05]
[1749923636552,14.73682961,144.33,144.32,6.324e-05]
[1749923637942,6.9259,144.33,144.32,6.324e-05]
[1749923642244,12.47873088,144.33,144.32,6.324e-05]
[1749923642444,6.9259,144.33,144.32,6.324e-05]
[1749923650045,0.0462867,144.35,144.32,34.84006324]
[1749923651551,6.9259,144.33,144.32,34.84006324]
[1749923651756,6.9259,144.33,144.32,6.324e-05]
[1749923652344,6.9256,144.34,144.32,6.324e-05]
[1749923652857,0.0462867,144.35,144.32,6.324e-05]
[1749923653450,6.9259,144.33,144.32,6.324e-05]
[1749923671367,12.48880529,144.33,144.32,6.324e-05]
[1749923674183,0.0462867,144.35,144.32,3.37201396]
[1749923674469,0.0462867,144.35,144.34,3.37151352]
[1749923674675,6.9248,144.36,144.34,3.37151352]
[1749923674871,6.9248,144.36,144.35,3.37151352]
[1749923675171,6.9248,144.36,144.33,34.84]
[1749923675378,6.9248,144.36,144.35,3.37151352]
[1749923677175,6.925,144.35,144.34,0.05211309]
[1749923682283,6.9269,144.31,144.3,34.8]
[1749923682485,5.26909408,144.33,144.27,34.8]
[1749923683170,0.0499909,144.31,144.29,0.05240376]
[1749923684683,6.9274,144.3,144.29,0.05240376]
[1749923691292,5.31908498,144.31,144.24,34.8]
[1749923691588,5.26909408,144.31,144.24,34.8]
[1749923692094,6.9298,144.25,144.24,34.8]
[1749923692683,6.97678705,144.26,144.24,34.8]
[1749923694088,6.97678705,144.26,144.24,41.7302]
[1749923694290,0.04738705,144.26,144.24,41.7302]
[1749923698688,0.04738705,144.26,144.25,6.9298]
[1749923702303,0.04738705,144.26,144.25,141.1898]
[1749923703204,2.3055,144.33,144.25,134.26]
[1749923703395,2.3055,144.33,144.26,5.26909408]
[1749923703796,6.9279,144.29,144.26,12.19809408]
[1749923704304,6.97945158,144.29,144.26,12.2492499]
[1749923706003,0.05155158,144.29,144.27,6.9287]
[1749923706203,4.5489,144.36,144.28,40.08909408]
[1749923706391,34.82,144.37,144.3,5.26909408]
[1749923706705,2.3358,144.38,144.32,5.26909408]
[1749923706889,2.3358,144.38,144.32,40.08909408]
[1749923707404,0.04766814,144.36,144.34,0.0483398]
[1749923707802,6.97246814,144.36,144.34,0.0483398]
[1749923708196,6.925,144.35,144.34,0.0483398]
[1749923708596,0.04766814,144.36,144.34,0.0483398]
[1749923709394,6.97256814,144.36,144.34,0.0483398]
[1749923709800,0.04766814,144.36,144.34,0.0483398]
[1749923709996,6.925,144.35,144.34,0.0483398]
[1749923710197,0.04766814,144.36,144.34,0.0483398]
[1749923710600,6.97246814,144.36,144.34,0.0483398]
[1749923712207,0.04766814,144.36,144.34,12.241854]
[1749923713510,6.97226814,144.36,144.34,5.316554]
[1749923714704,0.04766814,144.36,144.34,12.241754]
[1749923716410,0.04766814,144.36,144.34,0.0483398]
[1749923718111,6.97226814,144.36,144.34,0.0483398]
[1749923719010,0.04766814,144.36,144.34,6.9737398]
[1749923720310,0.04766814,144.36,144.35,6.925]
[1749923720611,0.04766814,144.36,144.35,12.19345535]
[1749923723918,0.04766814,144.36,144.35,5.26845535]
[1749923724708,0.04766814,144.36,144.35,12.19345535]
[1749923725814,6.9233,144.39,144.36,6.9243]
[1749923726006,6.9233,144.39,144.36,41.7043]
[1749923726212,4.6116,144.42,144.37,5.26845535]
[1749923727014,0.04800502,144.41,144.38,0.05325661]
[1749923727404,6.9226,144.4,144.38,0.05325661]
[1749923728815,6.9231,144.39,144.38,0.05325661]
[1749923738117,6.9228,144.4,144.38,0.05325661]
[1749923739032,6.9231,144.39,144.38,0.05325661]
[1749923743025,6.9231,144.39,144.38,5.661e-05]
[1749923747126,12.45589117,144.39,144.38,5.661e-05]
[1749923750017,19.88527159,144.39,144.38,5.661e-05]
[1749923750223,19.88534554,144.39,144.38,5.661e-05]
[1749923750424,17.31794054,144.39,144.38,5.661e-05]
[1749923750625,19.88548622,144.39,144.38,5.661e-05]
[1749923751224,19.88527234,144.39,144.38,5.661e-05]
[1749923751417,15.02336316,144.39,144.38,5.661e-05]